fUSD/lending_fUSD_20240708
["ID","MTS","AMOUNT","RATE_DAILY","PERIOD"]
[331530381,1720450246830,-500.0,0.00023999,2]
[331530382,1720450246839,-500.0,0.00023999,2]
[331530383,1720450246849,-500.0,0.00023999,2]
[331530384,1720450246858,-500.0,0.00023999,2]
[331530385,1720450246867,-500.0,0.00023999,2]
[331530386,1720450246876,-500.0,0.00023999,2]
[331530387,1720450246885,-500.0,0.00023999,2]
[331530388,1720450246895,-500.0,0.00023999,2]
[331530389,1720450246904,-500.0,0.00023999,2]
[331530390,1720450246913,-500.0,0.00023999,2]
[331530391,1720450246923,-500.0,0.00023999,2]
[331530392,1720450246935,-500.0,0.00023999,2]
[331530393,1720450246946,-500.0,0.00023999,2]
[331530394,1720450246955,-500.0,0.00023999,2]
[331530395,1720450246966,-500.0,0.00023999,2]
[331530396,1720450246976,-500.0,0.00023999,2]
[331530397,1720450246985,-500.0,0.00023999,2]
[331530398,1720450246994,-500.0,0.00023999,2]
[331530399,1720450247005,-500.0,0.00023999,2]
[331530400,1720450247014,-500.0,0.00023999,2]
[331530401,1720450247024,-500.0,0.00023999,2]
[331530402,1720450247033,-500.0,0.00023999,2]
[331530403,1720450247043,-500.0,0.00023999,2]
[331530404,1720450247052,-500.0,0.00023999,2]
[331530405,1720450247061,-500.0,0.00023999,2]
[331530406,1720450247071,-500.0,0.00023999,2]
[331530407,1720450247080,-500.0,0.00023999,2]
[331530408,1720450247090,-500.0,0.00023999,2]
[331530409,1720450247099,-500.0,0.00023999,2]
[331530410,1720450247109,-500.0,0.00023999,2]
[331530411,1720450247119,-500.0,0.00023999,2]
[331530412,1720450247128,-500.0,0.00023999,2]
[331530413,1720450247138,-500.0,0.00023999,2]
[331530414,1720450247147,-500.0,0.00023999,2]
[331530415,1720450247156,-500.0,0.00023999,2]
[331530416,1720450247166,-500.0,0.00023999,2]
[331530417,1720450247175,-500.0,0.00023999,2]
[331530418,1720450247187,-500.0,0.00023999,2]
[331530419,1720450247196,-500.0,0.00023999,2]
[331530420,1720450247205,-500.0,0.00023999,2]
[331530421,1720450247215,-500.0,0.00023999,2]
[331530422,1720450247225,-500.0,0.00023999,2]
[331530423,1720450247235,-500.0,0.00023999,2]
[331530424,1720450247246,-500.0,0.00023999,2]
[331530425,1720450247256,-500.0,0.00023999,2]
[331530426,1720450247265,-500.0,0.00023999,2]
[331530427,1720450247274,-500.0,0.00023999,2]
[331530428,1720450247284,-500.0,0.00023999,2]
[331530429,1720450247293,-500.0,0.00023999,2]
[331530430,1720450247302,-500.0,0.00023999,2]
[331530431,1720450247311,-500.0,0.00023999,2]
[331530432,1720450247323,-500.0,0.00023999,2]
[331530433,1720450247332,-500.0,0.00023999,2]
[331530434,1720450247342,-500.0,0.00023999,2]
[331530435,1720450247351,-500.0,0.00023999,2]
[331530436,1720450247360,-500.0,0.00023999,2]
[331530437,1720450247369,-500.0,0.00023999,2]
[331530438,1720450247378,-500.0,0.00023999,2]
[331530439,1720450247387,-500.0,0.00023999,2]
[331530440,1720450247396,-500.0,0.00023999,2]
[331530441,1720450247405,-500.0,0.00023999,2]
[331530442,1720450247415,-500.0,0.00023999,2]
[331530443,1720450247424,-500.0,0.00023999,2]
[331530444,1720450247439,-500.0,0.00023999,2]
[331530445,1720450247448,-500.0,0.00023999,2]
[331530446,1720450247456,-500.0,0.00023999,2]
[331530447,1720450247466,-500.0,0.00023999,2]
[331530448,1720450247475,-500.0,0.00023999,2]
[331530449,1720450247484,-500.0,0.00023999,2]
[331530450,1720450247493,-500.0,0.00023999,2]
[331530451,1720450247502,-500.0,0.00023999,2]
[331530452,1720450247511,-500.0,0.00023999,2]
[331530453,1720450247520,-500.0,0.00023999,2]
[331530454,1720450247529,-500.0,0.00023999,2]
[331530455,1720450247538,-500.0,0.00023999,2]
[331530456,1720450247547,-500.0,0.00023999,2]
[331530457,1720450247556,-500.0,0.00023999,2]
[331530458,1720450247565,-500.0,0.00023999,2]
[331530459,1720450247575,-500.0,0.00023999,2]
[331530460,1720450247584,-500.0,0.00023999,2]
[331530461,1720450247594,-500.0,0.00023999,2]
[331530462,1720450247603,-500.0,0.00023999,2]
[331530463,1720450247612,-500.0,0.00023999,2]
[331530464,1720450247622,-500.0,0.00023999,2]
[331530465,1720450247631,-500.0,0.00023999,2]
[331530466,1720450247640,-500.0,0.00023999,2]
[331530467,1720450247650,-500.0,0.00023999,2]
[331530468,1720450247659,-500.0,0.00023999,2]
[331530469,1720450247668,-500.0,0.00023999,2]
[331530470,1720450247677,-500.0,0.00023999,2]
[331530471,1720450247694,-500.0,0.00023999,2]
[331530472,1720450247703,-500.0,0.00023999,2]
[331530473,1720450247712,-500.0,0.00023999,2]
[331530474,1720450247721,-500.0,0.00023999,2]
[331530475,1720450247730,-500.0,0.00023999,2]
[331530476,1720450247739,-500.0,0.00023999,2]
[331530477,1720450247749,-500.0,0.00023999,2]
[331530478,1720450247758,-500.0,0.00023999,2]
[331530479,1720450247768,-500.0,0.00023999,2]
[331530480,1720450247777,-500.0,0.00023999,2]
[331530481,1720450247786,-500.0,0.00023999,2]
[331530482,1720450247795,-500.0,0.00023999,2]
[331530483,1720450247805,-500.0,0.00023999,2]
[331530484,1720450247815,-500.0,0.00023999,2]
[331530485,1720450247824,-500.0,0.00023999,2]
[331530486,1720450247833,-500.0,0.00023999,2]
[331530487,1720450247843,-500.0,0.00023999,2]
[331530488,1720450247852,-500.0,0.00023999,2]
[331530489,1720450247862,-500.0,0.00023999,2]
[331530490,1720450247871,-500.0,0.00023999,2]
[331530491,1720450247880,-1350.0,0.00024,2]
[331530492,1720450247890,-210.05238095,0.00024,2]
[331530493,1720450247899,-500.0,0.00024011,2]
[331530494,1720450247908,-7206.51665412,0.00024018,2]
[331530495,1720450247917,-5458.66079349,0.000241,2]
[331530496,1720450247927,-150.0,0.00024225,2]
[331530497,1720450247940,-278.44,0.00024294,2]
[331530498,1720450247950,-500.0,0.0002474,2]
[331530499,1720450247960,-500.0,0.0002474,2]
[331530500,1720450247969,-500.0,0.0002474,2]
[331530501,1720450247979,-500.0,0.0002474,2]
[331530502,1720450247988,-500.0,0.0002474,2]
[331530503,1720450247997,-500.0,0.0002474,2]
[331530504,1720450248007,-500.0,0.0002474,2]
[331530505,1720450248015,-500.0,0.0002474,2]
[331530506,1720450248024,-500.0,0.0002474,2]
[331530507,1720450248034,-500.0,0.0002474,2]
[331530508,1720450248042,-500.0,0.0002474,2]
[331530509,1720450248051,-500.0,0.0002474,2]
[331530510,1720450248061,-500.0,0.0002474,2]
[331530511,1720450248070,-500.0,0.0002474,2]
[331530512,1720450248174,-500.0,0.0002474,2]
[331530513,1720450248188,-500.0,0.0002474,2]
[331530514,1720450248197,-500.0,0.0002474,2]
[331530515,1720450248206,-500.0,0.0002474,2]
[331530516,1720450248215,-500.0,0.0002474,2]
[331530517,1720450248224,-150.0,0.00024802,2]
[331530518,1720450248238,-1169.0,0.0002484,2]
[331530519,1720450248247,-500.0,0.00024932,15]
[331530520,1720450248255,-500.0,0.00024932,15]
[331530521,1720450248265,-500.0,0.00024932,15]
[331530522,1720450248275,-500.0,0.00024932,2]
[331530523,1720450248284,-150.0,0.00024979,2]
[331530524,1720450248293,-151.0,0.00024987,2]
[331530525,1720450248303,-250.49088,0.00024987,2]
[331530526,1720450248314,-164.65715984,0.00025,2]
[331530527,1720450248325,-155.0,0.00025,2]
[331530528,1720450248334,-519.62210531,0.00025,2]
[331530529,1720450248345,-4569.89885213,0.00025,2]
[331530530,1720450248355,-245.83589402,0.00025,2]
[331530531,1720450248366,-752.25334591,0.00025,2]
[331530532,1720450248376,-2146.92588377,0.00025,2]
[331530533,1720450248387,-205.94662323,0.00025,30]
[331530535,1720450248396,-3500.57577915,0.00025,3]
[331530537,1720450248405,-4000.0,0.000251,2]
[331530539,1720450248415,-1000.0,0.00025205,2]
[331530540,1720450248424,-150.0,0.00025379,2]
[331530541,1720450248439,-302.0,0.00025407,4]
[331530542,1720450248450,-7736.73782381,0.00025448,2]
[331530544,1720450248459,-7228.35497137,0.000255,2]
[331530545,1720450248468,-500.0,0.000255,2]
[331530546,1720450248478,-339.74000108,0.00025761,2]
[331530547,1720450248487,-2500.0,0.000258,2]
[331530548,1720450248497,-604.0,0.00025834,7]
[331530549,1720450248506,-2750.14,0.000259,2]
[331530550,1720450248516,-980.89,0.000259,2]
[331530551,1720450248525,-818.33,0.000259,2]
[331530552,1720450248534,-160.20995833,0.000259,2]
[331530553,1720450248544,-150.0,0.00025955,2]
[331530554,1720450248553,-150.0,0.00025979,2]
[331530555,1720450248563,-1400.0,0.00026,2]
[331530556,1720450248573,-150.0,0.00026079,2]
[331530557,1720450248583,-166.99392,0.00026268,4]
[331530558,1720450248593,-1208.0,0.00026488,30]
[331530560,1720450248603,-150.0,0.00026532,2]
[331530561,1720450248612,-278.44,0.00026558,2]
[331530562,1720450248622,-7206.51665412,0.00026577,2]
[331530563,1720450248631,-150.0,0.00026979,2]
[331530564,1720450248640,-170.8405841,0.00027,2]
[331530565,1720450248651,-263.81849711,0.00027,2]
[331530566,1720450248660,-2000.0,0.00027,2]
[331530567,1720450248669,-448.43744001,0.00027,2]
[331530568,1720450248678,-1057.45385602,0.00027,2]
[331530569,1720450248693,-350.75780952,0.00027,2]
[331530570,1720450248702,-155.0,0.00027,2]
[331530571,1720450248711,-169.93311326,0.00027,2]
[331530572,1720450248719,-1000.82494235,0.00027,2]
[331530573,1720450248728,-155.0,0.00027,2]
[331530574,1720450248737,-2224.721865,0.0002701,2]
[331530575,1720450248746,-150.0,0.00027109,2]
[331530576,1720450248754,-4453.27,0.00027397,10]
[331530577,1720450248763,-150.0,0.00027686,2]
[331530578,1720450248772,-676.66,0.00027714,2]
[331530579,1720450248781,-173.33,0.00027714,2]
[331530580,1720450248790,-400.0,0.00027961,120]
[331530581,1720450248799,-150.0,0.00027979,2]
[331530582,1720450248809,-1450.0,0.00028,2]
[331530583,1720450248818,-24348.04672891,0.00028,2]
[331530584,1720450248827,-160.0,0.00028,2]
[331530585,1720450248836,-939.7567659,0.00028,29]
[331530586,1720450248846,-486.96093457,0.00028,2]
[331530587,1720450248856,-500.0,0.00028182,2]
[331530588,1720450248865,-2750.14,0.000282,2]
[331530589,1720450248876,-980.89,0.000282,2]
[331530590,1720450248885,-818.33,0.000282,2]
[331530591,1720450248895,-150.0,0.00028263,2]
[331530592,1720450248904,-7736.73782381,0.00028338,2]
[331530593,1720450248913,-2500.0,0.000285,2]
[331530594,1720450248922,-181.04591119,0.000285,120]
[331530595,1720450248931,-200.0,0.000285,2]
[331530596,1720450248944,-794.94749934,0.000285,2]
[331530597,1720450248954,-6079.0,0.000288,2]
[331530598,1720450248963,-2500.0,0.000288,2]
[331530599,1720450248973,-278.44,0.00028822,2]
[331530600,1720450248982,-150.0,0.00028839,2]
[331530601,1720450248992,-150.0,0.00028979,2]
[331530602,1720450249002,-2387.24871125,0.00029,30]
[331530603,1720450249011,-7206.51665412,0.00029135,15]
[331530604,1720450249020,-150.0,0.00029416,2]
[331530605,1720450249030,-444.6489786,0.000296,2]
[331530607,1720450249039,-572.61,0.000297,5]
[331530608,1720450249049,-1196.157543,0.0002988,30]
[331530609,1720450249058,-150.0,0.00029979,2]
[331530610,1720450249068,-150.0,0.00029993,2]
[331530611,1720450249077,-1150.33101658,0.00029999,30]
[331530612,1720450249087,-1500.0,0.0003,2]
[331530613,1720450249097,-1730.7316029,0.0003,4]
[331530614,1720450249106,-342.05042331,0.0003,10]
[331530615,1720450249116,-2000.0,0.0003,60]
[331530616,1720450249125,-495.84954346,0.0003,2]
[331530617,1720450249134,-1000.0,0.0003,60]
[331530618,1720450249144,-234.03160931,0.0003,2]
[331530619,1720450249152,-843.96353182,0.0003,2]
[331530620,1720450249162,-607.09560093,0.0003,2]
[331530621,1720450249171,-4405.79025379,0.0003,2]
[331530622,1720450249180,-150.0,0.0003,10]
[331530623,1720450249192,-209.0,0.0003,2]
[331530624,1720450249202,-1473.63702132,0.00030429,7]
[331530625,1720450249211,-1053.71142345,0.00030471,7]
[331530626,1720450249220,-150.0,0.0003057,2]
[331530627,1720450249231,-150.96913849,0.00030628,7]
[331530628,1720450249243,-151.0,0.00030749,2]
[331530629,1720450249253,-150.0,0.00030979,2]
[331530630,1720450249262,-1800.0,0.00031,30]
[331530631,1720450249272,-500.0,0.00031,2]
[331530632,1720450249282,-150.96913849,0.00031074,7]
[331530633,1720450249291,-278.44,0.00031086,2]
[331530634,1720450249300,-150.0,0.00031147,2]
[331530635,1720450249309,-2500.0,0.000312,2]
[331530636,1720450249320,-7736.73782381,0.00031229,15]
[331530637,1720450249329,-150.96913849,0.00031633,7]
[331530638,1720450249338,-7206.51665412,0.00031693,15]
[331530639,1720450249348,-339.74000108,0.00031693,2]
[331530640,1720450249357,-150.0,0.00031723,2]
[331530641,1720450249366,-167.25201945,0.00031852,7]
[331530642,1720450249375,-150.0,0.00031979,2]
[331530643,1720450249384,-416.39159994,0.00031996,7]
[331530644,1720450249393,-1550.0,0.00032,2]
[331530645,1720450249403,-2416.0,0.00032083,120]
[331530646,1720450249412,-150.0,0.000323,2]
[331530647,1720450249422,-416.39159994,0.00032327,7]
[331530648,1720450249431,-416.39159994,0.00032547,7]
[331530649,1720450249444,-1053.71142345,0.00032564,7]
[331530650,1720450249453,-652.03008958,0.00032664,7]
[331530651,1720450249462,-203.708153,0.000328,6]
[331530652,1720450249471,-203.708153,0.000328,6]
[331530653,1720450249479,-170.66063789,0.00032811,7]
[331530654,1720450249488,-2000.0,0.00032876,30]
[331530655,1720450249497,-2000.0,0.00032876,30]
[331530656,1720450249506,-2000.0,0.00032876,30]
[331530657,1720450249516,-2000.0,0.00032876,30]
[331530658,1720450249525,-2000.0,0.00032876,30]
[331530659,1720450249534,-2000.0,0.00032876,30]
[331530660,1720450249543,-2000.0,0.00032876,30]
[331530661,1720450249552,-2000.0,0.00032876,30]
[331530662,1720450249561,-2000.0,0.00032876,30]
[331530663,1720450249571,-2000.0,0.00032876,30]
[331530664,1720450249580,-1444.47186019,0.00032876,30]
[331530665,1720450249589,-800.0,0.00032877,120]
[331530666,1720450249599,-800.0,0.00032877,120]
[331530667,1720450249608,-800.0,0.00032877,120]
[331530668,1720450249617,-800.0,0.00032877,120]
[331530669,1720450249626,-800.0,0.00032877,120]
[331530670,1720450249635,-800.0,0.00032877,120]
[331530671,1720450249644,-800.0,0.00032877,120]
[331530672,1720450249654,-800.0,0.00032877,120]
[331530673,1720450249663,-800.0,0.00032877,120]
[331530674,1720450249672,-800.0,0.00032877,120]
[331530675,1720450249680,-770.5,0.00032877,120]
[331530676,1720450249695,-150.0,0.00032877,2]
[331530677,1720450249703,-150.0,0.00032979,2]
[331530678,1720450249713,-305.72634077,0.00033,5]
[331530679,1720450249722,-185.0425886,0.00033,30]
[331530680,1720450249733,-655.256263,0.00033,14]
[331530681,1720450249743,-209.0,0.00033,2]
[331530682,1720450249753,-150.96913849,0.00033025,7]
[331530683,1720450249762,-152.96646398,0.000331,7]
[331530684,1720450249771,-652.03008958,0.00033152,7]
[331530685,1720450249781,-278.44,0.0003335,2]
[331530686,1720450249790,-416.39159994,0.00033356,7]
[331530687,1720450249799,-150.96913849,0.00033471,7]
[331530688,1720450249807,-152.38462349,0.0003351,7]
[331530689,1720450249817,-652.03008958,0.00033513,7]
[331530690,1720450249826,-1473.63702132,0.00033568,7]
[331530691,1720450249835,-676.66,0.00033785,2]
[331530692,1720450249844,-173.33,0.00033785,2]
[331530693,1720450249854,-170.6329079,0.0003395,7]
[331530694,1720450249863,-416.39159994,0.00033964,7]
[331530695,1720450249872,-150.0,0.00033979,2]
[331530696,1720450249881,-1600.0,0.00034,2]
[331530697,1720450249890,-2500.0,0.00034,2]
[331530698,1720450249899,-200.0,0.00034,2]
[331530699,1720450249908,-1053.71142345,0.00034068,7]
[331530700,1720450249917,-166.66666666,0.00034076,7]
[331530701,1720450249926,-150.96913849,0.00034091,7]
[331530702,1720450249939,-7736.73782381,0.00034119,15]
[331530703,1720450249948,-1053.71142345,0.00034191,7]
[331530704,1720450249958,-2000.0,0.000342,120]
[331530705,1720450249967,-2500.0,0.000342,2]
[331530706,1720450249977,-7206.51665412,0.00034251,15]
[331530707,1720450249986,-652.03008958,0.00034281,7]
[331530708,1720450249995,-1000.12,0.000343,2]
[331530709,1720450250004,-302.56,0.000343,2]
[331530710,1720450250013,-162.33168961,0.00034396,7]
[331530711,1720450250022,-150.96913849,0.00034418,7]
[331530712,1720450250031,-500.0,0.00034425,2]
[331530713,1720450250040,-150.0,0.00034548,10]
[331530714,1720450250049,-152.38462349,0.0003457,7]
[331530715,1720450250058,-416.39159994,0.0003476,7]
[331530716,1720450250067,-200.0,0.000348,8]
[331530717,1720450250076,-200.0,0.000348,8]
[331530718,1720450250085,-1053.71142345,0.00034893,7]
[331530719,1720450250094,-150.0,0.00034979,2]
[331530720,1720450250103,-500.0,0.0003511,2]
[331530721,1720450250112,-2750.14,0.000352,2]
[331530722,1720450250121,-980.89,0.000352,2]
[331530723,1720450250129,-818.33,0.000352,2]
[331530724,1720450250138,-1053.71142345,0.00035318,7]
[331530725,1720450250148,-600.0,0.00035346,2]
[331530726,1720450250157,-151.14628754,0.00035359,7]
[331530727,1720450250166,-1000.12,0.00035475,2]
[331530728,1720450250175,-1014.0,0.000356,7]
[331530729,1720450250184,-278.44,0.00035614,2]
[331530730,1720450250196,-1198.44189751,0.00035714,2]
[331530731,1720450250205,-150.0,0.00035776,120]
[331530732,1720450250214,-1053.71142345,0.00035917,7]
[331530733,1720450250223,-302.56,0.0003592,2]
[331530734,1720450250233,-500.0,0.00035931,2]
[331530735,1720450250242,-150.0,0.00035979,2]
[331530736,1720450250255,-300.14738626,0.00036,5]
[331530737,1720450250264,-1650.0,0.00036,2]
[331530738,1720450250272,-2000.0,0.00036,120]
[331530739,1720450250282,-836.014158,0.00036,120]
[331530740,1720450250292,-565.3078593,0.00036082,4]
[331530741,1720450250301,-1473.63702132,0.00036192,7]
[331530742,1720450250311,-162.33168961,0.00036282,7]
[331530743,1720450250323,-156.38550522,0.00036347,7]
[331530744,1720450250332,-267.0,0.000364,2]
[331530745,1720450250342,-500.0,0.00036438,2]
[331530746,1720450250352,-416.39159994,0.00036443,7]
[331530747,1720450250362,-1473.63702132,0.00036604,7]
[331530748,1720450250371,-236.00917099,0.00036631,2]
[331530749,1720450250381,-1000.12,0.0003665,2]
[331530750,1720450250390,-151.53425501,0.00036658,7]
[331530751,1720450250400,-1559.971896,0.000367,2]
[331530752,1720450250409,-2500.0,0.000367,2]
[331530753,1720450250418,-321.44547856,0.00036719,2]
[331530754,1720450250428,-170.76527532,0.00036719,2]
[331530755,1720450250437,-167.84100357,0.00036773,7]
[331530756,1720450250447,-5100.0,0.000368,35]
[331530757,1720450250456,-258.0,0.000368,11]
[331530758,1720450250465,-258.0,0.000368,11]
[331530759,1720450250475,-150.0,0.000368,21]
[331530760,1720450250483,-160.0,0.000368,11]
[331530761,1720450250492,-200.0,0.000368,11]
[331530762,1720450250502,-200.0,0.000368,11]
[331530763,1720450250511,-7206.51665412,0.00036809,15]
[331530764,1720450250520,-3353.13113246,0.00036819,2]
[331530765,1720450250530,-500.0,0.00036819,2]
[331530766,1720450250539,-500.0,0.00036819,2]
[331530767,1720450250548,-500.0,0.00036819,2]
[331530768,1720450250557,-500.0,0.00036819,2]
[331530769,1720450250566,-652.03008958,0.00036822,7]
[331530770,1720450250576,-16082.4473091,0.00036848,2]
[331530771,1720450250585,-416.39159994,0.00036864,7]
[331530772,1720450250596,-151.53425501,0.00036873,7]
[331530773,1720450250605,-538.16,0.0003689,2]
[331530774,1720450250614,-128028.61151309,0.00036898,2]
[331530775,1720450250623,-20005.95346549,0.00036898,2]
[331530776,1720450250633,-408845.46231654,0.00036898,2]
[331530777,1720450250642,-11602.95599246,0.00036898,2]
[331530778,1720450250651,-5068.18222011,0.00036898,2]
[331530779,1720450250661,-13000.0,0.00036898,2]
[331530780,1720450250671,-13757.37836381,0.00036898,2]
[331530781,1720450250680,-23230.79316635,0.00036898,2]
[331530782,1720450250693,-5029.04275414,0.00036898,2]
[331530783,1720450250702,-169218.30010534,0.00036898,2]
[331530784,1720450250711,-10342.91952871,0.00036898,3]
[331530785,1720450250721,-3599.00797898,0.00036898,2]
[331530786,1720450250730,-7211.73350212,0.00036898,2]
[331530787,1720450250739,-5483.30930669,0.00036898,2]
[331530788,1720450250748,-22289.48482118,0.00036898,2]
[331530789,1720450250757,-14791.58718517,0.00036898,2]
[331530790,1720450250766,-5836.85389901,0.00036898,2]
[331530791,1720450250776,-4833.2375238,0.00036898,2]
[331530792,1720450250786,-14483.53971944,0.00036898,3]
[331530793,1720450250796,-5187.02803057,0.00036898,3]
[331530794,1720450250805,-20802.51259563,0.00036898,2]
[331530795,1720450250815,-10273.69144475,0.00036898,2]
[331530796,1720450250824,-3870.74210857,0.00036898,3]
[331530797,1720450250834,-18444.70694948,0.00036898,2]
[331530798,1720450250843,-1575.54917872,0.00036898,2]
[331530799,1720450250853,-1246.92818133,0.00036898,4]
[331530800,1720450250863,-952.345382,0.00036898,4]
[331530801,1720450250872,-6583.76278413,0.00036898,4]
[331530802,1720450250881,-7974.49642013,0.00036898,4]
[331530803,1720450250891,-10003.36590138,0.00036898,2]
[331530804,1720450250900,-387.39952874,0.00036898,2]
[331530805,1720450250909,-241.93941319,0.00036898,2]
[331530806,1720450250918,-999.999999,0.00036898,2]
[331530807,1720450250927,-179.57016222,0.00036898,2]
[331530808,1720450250940,-546.56661297,0.00036898,5]
[331530809,1720450250950,-599.90263299,0.00036898,6]
[331530810,1720450250959,-513.61927046,0.00036898,7]
[331530811,1720450250969,-400.99426067,0.00036898,7]
[331530812,1720450250978,-575.75270584,0.00036898,5]
[331530813,1720450250988,-209.86431574,0.00036898,7]
[331530814,1720450250998,-206.53054468,0.00036898,5]
[331530815,1720450251008,-1930.21499937,0.00036898,5]
[331530816,1720450251017,-949.88192879,0.00036898,5]
[331530817,1720450251026,-1000.0,0.00036898,5]
[331530818,1720450251034,-1078.36782953,0.00036898,7]
[331530819,1720450251043,-212.53454163,0.00036898,5]
[331530820,1720450251052,-7099.15473835,0.00036898,2]
[331530821,1720450251062,-19677.65135378,0.00036898,2]
[331530822,1720450251072,-150.0,0.00036898,3]
[331530823,1720450251081,-264.64995611,0.00036898,10]
[331530824,1720450251091,-275.0,0.00036898,14]
[331530825,1720450251101,-37000.24884323,0.00036898,2]
[331530826,1720450251110,-300.0,0.00036898,15]
[331530827,1720450251119,-500.0,0.00036898,10]
[331530828,1720450251128,-502182.14719946,0.00036898,20]
[331530829,1720450251137,-681.60413909,0.00036898,10]
[331530830,1720450251147,-123613.21664894,0.00036898,7]
[331530831,1720450251156,-10755.86117669,0.00036898,2]
[331530832,1720450251165,-1783.3380755,0.00036898,7]
[331530833,1720450251174,-9031.8497387,0.00036898,2]
[331530834,1720450251183,-171.77279852,0.00036898,2]
[331530835,1720450251196,-524121.93572042,0.00036898,7]
[331530836,1720450251205,-518.27661174,0.00036898,15]
[331530837,1720450251214,-94654.94678114,0.00036898,10]
[331530838,1720450251222,-4667.60860208,0.00036898,10]
[331530839,1720450251234,-1839.2237658,0.00036898,2]
[331530840,1720450251244,-190.5495506,0.00036898,7]
[331530841,1720450251253,-214.72213723,0.00036898,7]
[331530842,1720450251262,-3049.0,0.00036898,10]
[331530843,1720450251272,-527456.06241933,0.00036898,7]
[331530844,1720450251283,-983.0,0.00036898,30]
[331530845,1720450251292,-48271.32808147,0.00036898,20]
[331530846,1720450251302,-1007.55884233,0.00036898,30]
[331530847,1720450251311,-160.0,0.00036898,30]
[331530848,1720450251323,-191.0,0.00036898,30]
[331530849,1720450251332,-191.0,0.00036898,30]
[331530850,1720450251341,-500.0,0.00036898,30]
[331530851,1720450251350,-500.0,0.00036898,31]
[331530852,1720450251359,-663.82357688,0.00036898,90]
[331530853,1720450251369,-483.08555476,0.00036898,30]
[331530854,1720450251378,-361.0462754,0.00036898,30]
[331530855,1720450251386,-2242.79882987,0.00036898,30]
[331530856,1720450251395,-1901.41795736,0.00036898,30]
[331530857,1720450251404,-698.89205425,0.00036898,30]
[331530858,1720450251414,-325.8184974,0.00036898,120]
[331530859,1720450251423,-207.07199568,0.00036898,60]
[331530860,1720450251432,-1710.70616895,0.00036898,30]
[331530861,1720450251447,-197.45071313,0.00036898,30]
[331530862,1720450251456,-195.92014991,0.00036898,30]
[331530863,1720450251465,-770.26456373,0.00036898,31]
[331530864,1720450251475,-333.10400922,0.00036898,30]
[331530865,1720450251484,-201.35957906,0.00036898,30]
[331530866,1720450251493,-1506.51073705,0.00036898,30]
[331530867,1720450251504,-500.0,0.00036898,30]
[331530868,1720450251513,-304.50577523,0.00036898,120]
[331530869,1720450251522,-274.74759678,0.00036898,120]
[331530870,1720450251531,-227.33605601,0.00036898,30]
[331530871,1720450251540,-2907.83111776,0.00036898,30]
[331530872,1720450251549,-348.92235982,0.00036898,120]
[331530873,1720450251559,-368.27393391,0.00036898,30]
[331530874,1720450251568,-316.41112894,0.00036898,120]
[331530875,1720450251577,-305.88679872,0.00036898,120]
[331530876,1720450251586,-203.90226359,0.00036898,120]
[331530877,1720450251595,-2707.03840466,0.00036898,30]
[331530878,1720450251605,-193.06784355,0.00036898,30]
[331530879,1720450251614,-1671.5465101,0.00036898,30]
[331530880,1720450251624,-197.11593638,0.00036898,30]
[331530881,1720450251634,-1428.00698765,0.00036898,30]
[331530882,1720450251643,-252.88050309,0.00036898,30]
[331530883,1720450251653,-186.84440842,0.00036898,120]
[331530884,1720450251663,-408.190347,0.00036898,30]
[331530885,1720450251672,-2543.83138288,0.00036898,30]
[331530886,1720450251681,-1675.47457806,0.00036898,30]